Buisness Unit,Buisness Code,Service Label,Service Code,Organisational Unit,Expenditure  , Payment Date,Net Payment,Transaction Number,Supplier ID,Gross/Payment,Value 2,Calc Gl Account,,Supplier Name
North West Leicestershire District Council,31UH,Finance,EXCH,Exchequer Services,Other Services,04/06/2014,"8,707.17",1285098,A036958,"10,448.60","1,741.43",0370-0803,0803,Comensura Limited
North West Leicestershire District Council,31UH,Leisure & Culture,CULTEV,Cultural Services Arts & Events,Theatre Tickets,04/06/2014,"4,062.60",1285102,A021686,"4,062.60",0.00,0067-1057,1057,Ashby Dramatic Society
North West Leicestershire District Council,31UH,Communications,CS,Corporate - Customer Services,Equipment Operating Leases,04/06/2014,"2,552.28",1285163,A031590,"3,062.74",510.46,0838-0716,0716,Neopost Finance Limited
North West Leicestershire District Council,31UH,Housing,HRAHM,HRA Housing Management,Grants,04/06/2014,600.00,1285152,A030997,600.00,0.00,5085-0900,0900,Greenhill Tenants & Residents Associatio
North West Leicestershire District Council,31UH,Housing,HRAHM,HRA Housing Management,Grants,04/06/2014,600.00,1285151,A007855,600.00,0.00,5085-0900,0900,Willesley Tenants and
North West Leicestershire District Council,31UH,Housing,HRAHM,HRA Housing Management,Grants,04/06/2014,600.00,1285150,A011717,600.00,0.00,5085-0900,0900,Linford & Verdon Tenants and
North West Leicestershire District Council,31UH,Housing,HRAHM,HRA Housing Management,Grants,04/06/2014,600.00,1285149,A028377,600.00,0.00,5085-0900,0900,Riverview Tenants & Residents Associatio
North West Leicestershire District Council,31UH,Leisure & Culture,CULTYP,Cultural Services Children & YoungPeople,Extended Services,04/06/2014,"14,000.00",1285492,A040958,"14,000.00",0.00,0701-0914,0914,Baby Dolly
North West Leicestershire District Council,31UH,Information Technology,ICT,ICT Services,Photo Copier - Copy Charges Rental,04/06/2014,"2,126.58",1285500,A040459,"2,551.90",425.32,0834-0723,0723,Canon UK Ltd
North West Leicestershire District Council,31UH,Property Services,PROPCL,Property Commercial Lettings,Contribution To Emda,11/06/2014,"10,717.74",1285600,A032013,"10,717.74",0.00,0037-0927,0927,Blueprint Limited Partnership
North West Leicestershire District Council,31UH,Communications,CS,Corporate - Customer Services,Postages,11/06/2014,"6,000.00",1285603,A000079,"6,000.00",0.00,0838-0850,0850,Neopost Limited
North West Leicestershire District Council,31UH,Neighbourhoods & Communities,NACN,N & C Neighbourhoods,Extended Services,11/06/2014,683.31,1285605,A024378,819.97,136.66,0701-0914,0914,Hays Human Resources
North West Leicestershire District Council,31UH,Leisure & Culture,CULTIC,Cultural Services TIC,Premises Rents,11/06/2014,537.50,1285635,A000950,537.50,0.00,0067-0350,0350,Leicestershire County Council
North West Leicestershire District Council,31UH,Property Services,PROPFM,Property Facilities Management,Water Charges (Metered),04/06/2014,"2,586.09",1285166,A001468,"2,586.09",0.00,0210-0370,0370,Severn Trent Water Limited
North West Leicestershire District Council,31UH,Finance,FINPLA,Financial Planning,PCN LEVY,04/06/2014,"2,653.00",1285488,A000950,"3,183.60",530.60,0142-1016,1016,Leicestershire County Council
North West Leicestershire District Council,31UH,Legal & Democratic,LDLS,Legal Services,Books & Publications,04/06/2014,866.00,1285489,A006155,866.00,0.00,1017-0782,0782,LexisNexis UK
North West Leicestershire District Council,31UH,Planning & Development,EDC,Environment - Development Control,External Legal Fees & Advice,04/06/2014,"2,000.00",1285081,A034291,"2,400.00",400.00,1301-1900,1900,Valuation Office Agency
North West Leicestershire District Council,31UH,Planning & Development,EDC,Environment - Development Control,External Legal Fees & Advice,04/06/2014,"1,246.72",1285080,A034291,"1,496.06",249.34,1301-1900,1900,Valuation Office Agency
North West Leicestershire District Council,31UH,Planning & Development,EDC,Environment - Development Control,External Legal Fees & Advice,04/06/2014,989.27,1285079,A034291,"1,187.12",197.85,1301-1900,1900,Valuation Office Agency
North West Leicestershire District Council,31UH,Street Management,ENOT,Environment Transport,Water Charges (Metered),04/06/2014,"1,774.00",1285070,A001468,"1,774.00",0.00,0204-0370,0370,Severn Trent Water Limited
North West Leicestershire District Council,31UH,Legal & Democratic,LDLS,Legal Services,External Legal Fees & Advice,11/06/2014,500.00,1285759,A039444,600.00,100.00,1301-1900,1900,Mr Timothy Leader
North West Leicestershire District Council,31UH,Legal & Democratic,LDLS,Legal Services,External Legal Fees & Advice,11/06/2014,"1,250.00",1285760,A039444,"1,500.00",250.00,1301-1900,1900,Mr Timothy Leader
North West Leicestershire District Council,31UH,Planning & Development,ECCTV,Environment - Town Centre/CCTV,Maintenance Contract,11/06/2014,"3,020.72",1285767,A035493,"3,624.86",604.14,0125-0725,0725,Quadrant Security Group Limited
North West Leicestershire District Council,31UH,Property Services,PROPCL,Property Commercial Lettings,Water Charges (Metered),04/06/2014,"1,868.90",1285065,A001468,"1,868.90",0.00,0048-0370,0370,Severn Trent Water Limited
North West Leicestershire District Council,31UH,Street Management,ENOP,Environment Parks,Water Charges (Metered),04/06/2014,609.41,1285063,A001468,609.41,0.00,0477-0370,0370,Severn Trent Water Limited
North West Leicestershire District Council,31UH,Street Management,ENOWM,Environment Waste Management,Trade Refuse Disposal Costs,04/06/2014,"40,628.33",1285035,A000950,"48,754.00","8,125.67",0382-0797,0797,Leicestershire County Council
North West Leicestershire District Council,31UH,Finance,EXCH,Exchequer Services,Agency Staff,11/06/2014,"8,690.74",1285640,A036958,"10,428.91","1,738.17",0370-0080,0080,Comensura Limited
North West Leicestershire District Council,31UH,Housing Repairs,HRAHRM,HRA Housing Repairs & Maintenance,Contract Payments (Dws) Ext,11/06/2014,560.00,1285773,A022373,672.00,112.00,6425-1510,1510,Cresswell Property Surveys
North West Leicestershire District Council,31UH,Finance,EXCH,Exchequer Services,Other Miscellaneous Expenses,11/06/2014,"2,308.55",1285802,A010859,"2,770.26",461.71,1002-0949,0949,Selima Limited
North West Leicestershire District Council,31UH,Information Technology,ICT,ICT Services,Telephone Charge / Rental,11/06/2014,"5,296.32",1285674,A008908,"6,355.57","1,059.25",5513-0860,0860,Virgin Media Business
North West Leicestershire District Council,31UH,Housing,HRAHM,HRA Housing Management,Decent Homes,11/06/2014,"12,654.78",1285814,A039980,"15,185.74","2,530.96",6484-1841,1841,Kier Services Maintenance East Ltd
North West Leicestershire District Council,31UH,Housing Repairs,HRAHRM,HRA Housing Repairs & Maintenance,Decent Homes,11/06/2014,"3,882.91",1285815,A039980,"4,659.49",776.58,6498-1510,1510,Kier Services Maintenance East Ltd
North West Leicestershire District Council,31UH,Information Technology,ICT,ICT Services,Photo Copier - Copy Charges Rental,05/06/2014,838.47,1285677,A001301,"1,006.16",167.69,0837-0723,0723,The Danwood Group Ltd
North West Leicestershire District Council,31UH,Corporate Director,HR,Human Resources,Criminal Records Bureau,05/06/2014,598.00,1285678,A027625,598.00,0.00,0310-1012,1012,The Disclosure & Barring Service
North West Leicestershire District Council,31UH,Housing Repairs,HRAHRM,HRA Housing Repairs & Maintenance,Decent Homes,11/06/2014,"588,910.68",1285816,A039980,"706,692.82","117,782.14",6484-1841,1841,Kier Services Maintenance East Ltd
North West Leicestershire District Council,31UH,Housing Repairs,HRAHRM,HRA Housing Repairs & Maintenance,Decent Homes,11/06/2014,"3,498.84",1285817,A039980,"4,198.61",699.77,6477-1536,1536,Kier Services Maintenance East Ltd
North West Leicestershire District Council,31UH,Housing Repairs,HRAHRM,HRA Housing Repairs & Maintenance,Tipping Charges,11/06/2014,"2,205.90",1285820,A035471,"2,647.08",441.18,5301-0818,0818,Ward Recycling
North West Leicestershire District Council,31UH,Legal & Democratic,LDLS,Legal Services,External Legal Fees & Advice,11/06/2014,"11,590.80",1285958,A000251,"13,904.56","2,313.76",1301-1900,1900,Browne Jacobson
North West Leicestershire District Council,31UH,Housing Repairs,HRAHRM,HRA Housing Repairs & Maintenance,Tipping Charges,18/06/2014,514.90,1285976,A035471,617.88,102.98,5301-0818,0818,Ward Recycling
North West Leicestershire District Council,31UH,Finance,EXCH,Exchequer Services,Agency Staff,18/06/2014,"8,350.72",1285979,A036958,"10,020.88","1,670.16",0370-0080,0080,Comensura Limited
North West Leicestershire District Council,31UH,Finance,FINPLA,Financial Planning,Insurances,18/06/2014,"2,200.00",1286007,A033807,"2,640.00",440.00,1003-0836,0836,Zurich Insurance Company
North West Leicestershire District Council,31UH,Property Services,PROPFM,Property Facilities Management,Electricity,11/06/2014,"3,810.01",1285839,A030266,"4,572.01",762.00,0210-0302,0302,Southern Electric
North West Leicestershire District Council,31UH,Property Services,PROPCL,Property Commercial Lettings,Telephones,11/06/2014,641.77,1285859,A000233,770.12,128.35,0044-0851,0851,British Telecommunications P
North West Leicestershire District Council,31UH,Housing,HRAHM,HRA Housing Management,Miscellaneous,11/06/2014,952.00,1285860,A039091,"1,142.40",190.40,5013-0170,0170,Energico
North West Leicestershire District Council,31UH,Housing,HRAHM,HRA Housing Management,Miscellaneous,11/06/2014,544.00,1285861,A039091,652.80,108.80,5013-0170,0170,Energico
North West Leicestershire District Council,31UH,Housing,HRAHM,HRA Housing Management,Miscellaneous,11/06/2014,952.00,1285862,A039091,"1,142.40",190.40,5013-0170,0170,Energico
North West Leicestershire District Council,31UH,Leisure & Culture,CULTYP,Cultural Services Children & YoungPeople,Locality Partnership Co-ord,18/06/2014,926.00,1286038,A000434,"1,111.20",185.20,0701-0966,0966,Crestline Printers Limited
North West Leicestershire District Council,31UH,Planning & Development,ECCTV,Environment - Town Centre/CCTV,Electricity,18/06/2014,"1,065.69",1286039,A030266,"1,278.82",213.13,0700-0302,0302,Southern Electric
North West Leicestershire District Council,31UH,Environmental Health,EES,Environmental Services,Stray Dog Service,18/06/2014,"1,320.14",1286042,A000385,"1,584.17",264.03,0348-0957,0957,College Garth Boarding Kenn
North West Leicestershire District Council,31UH,Environmental Health,EEHL,Environmental Health & Licensing,Grants,18/06/2014,500.00,1286056,A038386,500.00,0.00,6818-1553,1553,David Kirton Designs
North West Leicestershire District Council,31UH,Finance,EXCH,Exchequer Services,Collection - Cash,18/06/2014,"1,013.27",1286058,A004468,"1,215.92",202.65,5501-0830,0830,Kings Armoured Security Ser
North West Leicestershire District Council,31UH,Leisure Centres,HPLC,Hood Park Leisure Centre,Electricity,18/06/2014,"1,404.97",1286089,A030266,"1,685.96",280.99,5513-0302,0302,Southern Electric
North West Leicestershire District Council,31UH,Leisure Centres,HPLC,Hood Park Leisure Centre,Water Charges (Metered),18/06/2014,"1,434.06",1286090,A001468,"1,434.06",0.00,5513-0370,0370,Severn Trent Water Limited
North West Leicestershire District Council,31UH,Environmental Health,EES,Environmental Services,Grants,18/06/2014,990.00,1286265,A041503,990.00,0.00,6818-1553,1553,David A Clarke (Electrical) Ltd
North West Leicestershire District Council,31UH,Finance,EXCH,Exchequer Services,Expenditure against earmarked reserve,18/06/2014,"1,700.00",1286291,A010859,"2,040.00",340.00,1002-0680,0680,Selima Limited
North West Leicestershire District Council,31UH,Neighbourhoods & Communities,NACCS,N & C Community Safety,Extended Services,25/06/2014,"6,390.00",1286399,A039843,"6,390.00",0.00,0701-0914,0914,Women's Aid Leicestershire Ltd
North West Leicestershire District Council,31UH,Environmental Health,EES,Environmental Services,Electricity,25/06/2014,811.30,1286401,A035745,973.56,162.26,0125-0302,0302,British Gas Business
North West Leicestershire District Council,31UH,Neighbourhoods & Communities,NACN,N & C Neighbourhoods,Other Miscellaneous Expenses,25/06/2014,"1,000.00",1286411,A040311,"1,000.00",0.00,0679-0949,0949,ADHD Solutions
North West Leicestershire District Council,31UH,Neighbourhoods & Communities,NACN,N & C Neighbourhoods,Other Miscellaneous Expenses,25/06/2014,600.00,1286412,A000780,600.00,0.00,0679-0949,0949,Homestart (N.W. Leics)
North West Leicestershire District Council,31UH,Neighbourhoods & Communities,NACN,N & C Neighbourhoods,Other Miscellaneous Expenses,25/06/2014,970.00,1286413,A041512,970.00,0.00,0679-0949,0949,Self Advocacy in Action
North West Leicestershire District Council,31UH,Housing Repairs,HRAHRM,HRA Housing Repairs & Maintenance,Decent Homes,25/06/2014,"298,025.82",1286425,A039973,"357,630.98","59,605.16",6484-1841,1841,Lovell Partnerships Ltd
North West Leicestershire District Council,31UH,Housing Repairs,HRAHRM,HRA Housing Repairs & Maintenance,Decent Homes,25/06/2014,"3,234.42",1286450,A039973,"3,881.30",646.88,6477-1536,1536,Lovell Partnerships Ltd
North West Leicestershire District Council,31UH,Housing,HRAHM,HRA Housing Management,Contract Cleaning,25/06/2014,"1,858.66",1286473,A000950,"2,230.39",371.73,5005-0420,0420,Leicestershire County Council
North West Leicestershire District Council,31UH,Neighbourhoods & Communities,NACN,N & C Neighbourhoods,Contract Payments (Other) Ext,25/06/2014,500.00,1286484,A039895,500.00,0.00,7376-1511,1511,Broomleys Community Allotment Society
North West Leicestershire District Council,31UH,Leisure Centres,HPLC,Hood Park Leisure Centre,Telephone Charge / Rental,25/06/2014,580.83,1286552,A035373,697.00,116.17,5513-0860,0860,Virgin Media Business
North West Leicestershire District Council,31UH,Leisure Centres,HPLC,Hood Park Leisure Centre,Water Charges (Metered),25/06/2014,830.00,1286553,A001468,830.00,0.00,5513-0370,0370,Severn Trent Water Limited
North West Leicestershire District Council,31UH,Communications,CS,Corporate - Customer Services,Postages,25/06/2014,715.00,1286555,A000743,858.00,143.00,0838-0850,0850,DX Network Services Limited
North West Leicestershire District Council,31UH,Environmental Health,EES,Environmental Services,Grants,25/06/2014,989.50,1286643,A038386,989.50,0.00,6818-1553,1553,David Kirton Designs
North West Leicestershire District Council,31UH,Leisure & Culture,CULTYP,Cultural Services Children & YoungPeople,Positive Activities for Young People Exp,25/06/2014,600.00,1286644,A000950,600.00,0.00,0935-5897,5897,Leicestershire County Council
North West Leicestershire District Council,31UH,Leisure & Culture,CULTYP,Cultural Services Children & YoungPeople,Other Miscellaneous Expenses,25/06/2014,862.42,1286652,A041520,862.42,0.00,0679-0949,0949,Measham Community & Recreation Centre
North West Leicestershire District Council,31UH,Finance,EXCH,Exchequer Services,Agency Staff,25/06/2014,"10,112.22",1286662,A036958,"12,134.67","2,022.45",0370-0080,0080,Comensura Limited
North West Leicestershire District Council,31UH,Street Management,ENOWM,Environment Waste Management,External Contractor Payments,25/06/2014,"1,002.63",1286723,A000770,"1,203.16",200.53,0370-0813,0813,Hinckley & Bosworth Boroug
North West Leicestershire District Council,31UH,Housing Repairs,HRAHRM,HRA Housing Repairs & Maintenance,General Materials,24/06/2014,"41,654.95",1286703,A036453,"49,984.01","8,329.06",5301-0729,0729,Collective Enterprises Ltd
North West Leicestershire District Council,31UH,Finance,EXCH,Exchequer Services,Electricity,25/06/2014,"9,183.72",1286700,A034733,"9,970.59",786.87,0037-0302,0302,British Gas Business
North West Leicestershire District Council,31UH,Leisure & Culture,CULTIC,Cultural Services TIC,Theatre Tickets,25/06/2014,"1,251.00",1286699,A039327,"1,251.00",0.00,0067-1057,1057,Ashby DLZ Festival Ltd
North West Leicestershire District Council,31UH,Leisure & Culture,CULTIC,Cultural Services TIC,Theatre Tickets,25/06/2014,"2,240.10",1286698,A039327,"2,240.10",0.00,0067-1057,1057,Ashby DLZ Festival Ltd
North West Leicestershire District Council,31UH,Housing,HRAHM,HRA Housing Management,Contract Cleaning,25/06/2014,"5,237.87",1286697,A000950,"6,285.44","1,047.57",5030-0420,0420,Leicestershire County Council
North West Leicestershire District Council,31UH,Legal & Democratic,LDLS,Legal Services,Legal & Professional Services,25/06/2014,500.00,1286815,A000251,600.00,100.00,1017-0800,0800,Browne Jacobson
North West Leicestershire District Council,31UH,Finance,EXCH,Exchequer Services,Gas,24/06/2014,"15,403.53",1286719,A035709,"18,444.69","3,041.16",5501-0303,0303,Corona Energy Retail 4 Ltd
North West Leicestershire District Council,31UH,Finance,EXCH,Exchequer Services,Gas,24/06/2014,"3,856.37",1286720,A000958,"4,432.60",576.23,0390-0303,0303,ESPO
North West Leicestershire District Council,31UH,Communications,CS,Corporate - Customer Services,Postal Collection,25/06/2014,787.00,1286818,A001418,944.40,157.40,0838-0844,0844,Royal Mail Group Plc
North West Leicestershire District Council,31UH,Finance,EXCH,Exchequer Services,National Insurance,25/06/2014,"4,297.00",1286823,A038465,"4,297.00",0.00,0370-0005,0005,HM Revenues & Customs
North West Leicestershire District Council,31UH,Housing Repairs,HRAHRM,HRA Housing Repairs & Maintenance,Repairs and Maintenance,04/06/2014,"2,562.43",1285282,A033342,"3,074.92",512.49,6456-1283,1283,J Tomlinson Ltd
North West Leicestershire District Council,31UH,Housing Repairs,HRAHRM,HRA Housing Repairs & Maintenance,Repairs and Maintenance,04/06/2014,"6,489.00",1285333,A033342,"7,786.80","1,297.80",6456-1281,1281,J Tomlinson Ltd
North West Leicestershire District Council,31UH,Housing Repairs,HRAHRM,HRA Housing Repairs & Maintenance,Plumbing & Heating,04/06/2014,514.00,1285388,A000950,616.80,102.80,5010-0167,0167,Leicestershire County Council
North West Leicestershire District Council,31UH,Housing Repairs,HRAHRM,HRA Housing Repairs & Maintenance,Repairs and Maintenance,04/06/2014,742.66,1285402,A031787,891.19,148.53,5005-1285,1285,Laker BMS Ltd
North West Leicestershire District Council,31UH,Housing Repairs,HRAHRM,HRA Housing Repairs & Maintenance,Repairs and Maintenance,04/06/2014,"2,346.01",1285403,A031787,"2,815.21",469.20,5005-1283,1283,Laker BMS Ltd
North West Leicestershire District Council,31UH,Housing Repairs,HRAHRM,HRA Housing Repairs & Maintenance,Repairs and Maintenance,04/06/2014,632.70,1285404,A031787,759.24,126.54,5005-1287,1287,Laker BMS Ltd
North West Leicestershire District Council,31UH,Housing Repairs,HRAHRM,HRA Housing Repairs & Maintenance,Contract Payments (Dws) Ext,04/06/2014,551.03,1285426,A031787,661.24,110.21,6495-1510,1510,Laker BMS Ltd
North West Leicestershire District Council,31UH,Housing Repairs,HRAHRM,HRA Housing Repairs & Maintenance,Repairs and Maintenance,11/06/2014,500.25,1285744,A001152,600.30,100.05,5103-1283,1283,Morris Vermaport Limited
North West Leicestershire District Council,31UH,Housing Repairs,HRAHRM,HRA Housing Repairs & Maintenance,Repairs and Maintenance,11/06/2014,"2,246.00",1285749,A035827,"2,695.20",449.20,5103-1287,1287,Novus Property Solutions Limited
North West Leicestershire District Council,31UH,Housing Repairs,HRAHRM,HRA Housing Repairs & Maintenance,Repairs and Maintenance,11/06/2014,650.00,1285750,A035827,780.00,130.00,5103-1287,1287,Novus Property Solutions Limited
North West Leicestershire District Council,31UH,Housing Repairs,HRAHRM,HRA Housing Repairs & Maintenance,Repairs and Maintenance,11/06/2014,"2,111.20",1285751,A035827,"2,533.44",422.24,6459-1291,1291,Novus Property Solutions Limited
North West Leicestershire District Council,31UH,Housing Repairs,HRAHRM,HRA Housing Repairs & Maintenance,Repairs and Maintenance,11/06/2014,"2,111.20",1285752,A035827,"2,533.44",422.24,6459-1291,1291,Novus Property Solutions Limited
North West Leicestershire District Council,31UH,Housing Repairs,HRAHRM,HRA Housing Repairs & Maintenance,Repairs and Maintenance,11/06/2014,"1,491.98",1285739,A031787,"1,790.38",298.40,5005-1283,1283,Laker BMS Ltd
North West Leicestershire District Council,31UH,Housing Repairs,HRAHRM,HRA Housing Repairs & Maintenance,Repairs and Maintenance,11/06/2014,793.48,1285728,A031787,952.18,158.70,6495-1510,1510,Laker BMS Ltd
North West Leicestershire District Council,31UH,Housing Repairs,HRAHRM,HRA Housing Repairs & Maintenance,Repairs and Maintenance,18/06/2014,557.71,1286183,A031086,557.71,0.00,5103-1285,1285,Premier Waste and Recycling
North West Leicestershire District Council,31UH,Housing Repairs,HRAHRM,HRA Housing Repairs & Maintenance,Repairs and Maintenance,18/06/2014,719.49,1286185,A031086,719.49,0.00,5005-1283,1283,Premier Waste and Recycling
North West Leicestershire District Council,31UH,Housing Repairs,HRAHRM,HRA Housing Repairs & Maintenance,Repairs and Maintenance,18/06/2014,689.97,1286188,A036945,827.96,137.99,5103-1287,1287,Apollo Property Services Group Limited
North West Leicestershire District Council,31UH,Housing Repairs,HRAHRM,HRA Housing Repairs & Maintenance,Repairs and Maintenance,18/06/2014,556.52,1286201,A031787,667.82,111.30,6495-1510,1510,Laker BMS Ltd
North West Leicestershire District Council,31UH,Housing Repairs,HRAHRM,HRA Housing Repairs & Maintenance,Repairs and Maintenance,18/06/2014,667.00,1286206,A031787,800.40,133.40,5103-1293,1293,Laker BMS Ltd
North West Leicestershire District Council,31UH,Housing Repairs,HRAHRM,HRA Housing Repairs & Maintenance,Repairs and Maintenance,18/06/2014,"1,388.60",1286212,A031787,"1,666.32",277.72,5005-1285,1285,Laker BMS Ltd
North West Leicestershire District Council,31UH,Housing Repairs,HRAHRM,HRA Housing Repairs & Maintenance,Repairs and Maintenance,18/06/2014,"2,441.16",1286254,A031787,"2,929.39",488.23,5005-1293,1293,Laker BMS Ltd
North West Leicestershire District Council,31UH,Housing Repairs,HRAHRM,HRA Housing Repairs & Maintenance,Repairs and Maintenance,18/06/2014,620.68,1286255,A031086,620.68,0.00,5005-1285,1285,Premier Waste and Recycling
North West Leicestershire District Council,31UH,Housing Repairs,HRAHRM,HRA Housing Repairs & Maintenance,Repairs and Maintenance,18/06/2014,611.80,1286238,A031787,734.16,122.36,5103-1291,1291,Laker BMS Ltd
North West Leicestershire District Council,31UH,Housing Repairs,HRAHRM,HRA Housing Repairs & Maintenance,Repairs and Maintenance,25/06/2014,512.38,1286577,A031086,512.38,0.00,5005-1292,1292,Premier Waste and Recycling
North West Leicestershire District Council,31UH,Housing Repairs,HRAHRM,HRA Housing Repairs & Maintenance,Repairs and Maintenance,25/06/2014,524.40,1286581,A033342,629.28,104.88,5007-1241,1241,J Tomlinson Ltd
North West Leicestershire District Council,31UH,Housing Repairs,HRAHRM,HRA Housing Repairs & Maintenance,Repairs and Maintenance,25/06/2014,"3,293.15",1286582,A033342,"3,951.78",658.63,6425-1513,1513,J Tomlinson Ltd
North West Leicestershire District Council,31UH,Housing Repairs,HRAHRM,HRA Housing Repairs & Maintenance,General Repairs,25/06/2014,"2,642.71",1286583,A033342,"3,171.25",528.54,0530-0100,0100,J Tomlinson Ltd
North West Leicestershire District Council,31UH,Housing Repairs,HRAHRM,HRA Housing Repairs & Maintenance,Internal Painting,25/06/2014,"20,047.63",1286576,A035827,"24,057.16","4,009.53",5024-0171,0171,Novus Property Solutions Limited
North West Leicestershire District Council,31UH,Housing Repairs,HRAHRM,HRA Housing Repairs & Maintenance,Repairs and Maintenance,25/06/2014,685.75,1286625,A038041,822.90,137.15,6455-1292,1292,I G Doors Limited
North West Leicestershire District Council,31UH,Housing Repairs,HRAHRM,HRA Housing Repairs & Maintenance,Repairs and Maintenance,25/06/2014,"8,591.84",1286629,A035827,"10,310.21","1,718.37",5024-0171,0171,Novus Property Solutions Limited
North West Leicestershire District Council,31UH,Housing Repairs,HRAHRM,HRA Housing Repairs & Maintenance,Repairs and Maintenance,25/06/2014,530.00,1286633,A041264,530.00,0.00,5103-1281,1281,Heights Installations
North West Leicestershire District Council,31UH,Housing Repairs,HRAHRM,HRA Housing Repairs & Maintenance,Repairs and Maintenance,25/06/2014,539.91,1286618,A038041,647.89,107.98,6455-1283,1283,I G Doors Limited
North West Leicestershire District Council,31UH,Housing,HRAHM,HRA Housing Management,Repairs and Maintenance,04/06/2014,"2,428.57",1284597,A041114,"2,428.57",0.00,6478-1282,1282,Gresley House Care Home
North West Leicestershire District Council,31UH,Street Management,ESS,Environment - Street Scene,General Repairs,04/06/2014,"1,250.00",1284955,A032769,"1,250.00",0.00,0456-0100,0100,K Mitchell Memorials Ltd
North West Leicestershire District Council,31UH,Communications,CP,Corporate - Communications,Training Expenses,04/06/2014,595.00,1285051,A033098,714.00,119.00,1522-0042,0042,Pin-Point Training Ltd
North West Leicestershire District Council,31UH,Street Management,ESS,Environment - Street Scene,Imp Energy Eff - Safety of Central Htg,04/06/2014,"1,786.97",1285501,A040460,"1,876.32",89.35,0913-1083,1083,Sure Maintenance Ltd
North West Leicestershire District Council,31UH,Finance,EXCH,Exchequer Services,Computer Development,04/06/2014,895.00,1285502,A025004,"1,074.00",179.00,1210-0897,0897,Total Mobile
North West Leicestershire District Council,31UH,Finance,FINPLA,Financial Planning,Computing,04/06/2014,"1,200.00",1285505,A036780,"1,440.00",240.00,1003-0854,0854,CIPFA Business Limited
North West Leicestershire District Council,31UH,Finance,FINPLA,Financial Planning,Computing,04/06/2014,"3,210.00",1285506,A036780,"3,852.00",642.00,1003-0854,0854,CIPFA Business Limited
North West Leicestershire District Council,31UH,Street Management,ENOP,Environment Parks,External Materials,04/06/2014,500.00,1284614,A039324,600.00,100.00,0390-0741,0741,Four Counties Tree Specialists Ltd
North West Leicestershire District Council,31UH,Street Management,ESS,Environment - Street Scene,Publicity & Promotion,04/06/2014,996.00,1284626,A000754,"1,195.20",199.20,0290-0942,0942,Hemming Group Limited
North West Leicestershire District Council,31UH,Property Services,PROPCL,Property Commercial Lettings,Contract Cleaning,04/06/2014,506.18,1284642,A003037,607.42,101.24,0044-0420,0420,Coalville Cleaning Services
North West Leicestershire District Council,31UH,Property Services,PROPFM,Property Facilities Management,Purchases,04/06/2014,720.00,1285040,A033342,864.00,144.00,9296-8100,8100,J Tomlinson Ltd
North West Leicestershire District Council,31UH,Property Services,PROPFM,Property Facilities Management,Minor Improvements Alterations,04/06/2014,"1,554.12",1285041,A030887,"1,864.94",310.82,5512-0105,0105,T Denman & Sons (Melton Mowbray) Ltd
North West Leicestershire District Council,31UH,Street Management,ESS,Environment - Street Scene,Work in Default,04/06/2014,"1,500.00",1285048,A033220,"1,800.00",300.00,0913-1014,1014,Land Quality Management Ltd
North West Leicestershire District Council,31UH,Street Management,ENOT,Environment Transport,Repairs - Parts,04/06/2014,789.09,1285055,A035291,946.91,157.82,5889-0533,0533,Mertrux
North West Leicestershire District Council,31UH,Property Services,PROPCL,Property Commercial Lettings,General Repairs,04/06/2014,"1,809.78",1285062,A033342,"2,171.74",361.96,5256-0100,0100,J Tomlinson Ltd
North West Leicestershire District Council,31UH,Property Services,PROPFM,Property Facilities Management,Admin Equipment - Maintenance,04/06/2014,705.99,1285068,A040690,847.19,141.20,1011-0696,0696,ACE Environmental Engineering Ltd
North West Leicestershire District Council,31UH,Street Management,ENOT,Environment Transport,Purchases,04/06/2014,"18,368.06",1285078,A040946,"22,041.67","3,673.61",9701-8100,8100,Hall Fuels (Division of Watson Petroleum
North West Leicestershire District Council,31UH,Information Technology,ICT,ICT Services,Administrative Equipment,04/06/2014,"1,652.14",1285084,A000470,"1,982.57",330.43,1011-0700,0700,Dell Computer Corporation L
North West Leicestershire District Council,31UH,Property Services,PROPFM,Property Facilities Management,Alt & Mtce-Fixed Plant,04/06/2014,590.19,1285105,A006288,708.23,118.04,0210-0150,0150,Protec Fire Detection Plc
North West Leicestershire District Council,31UH,Planning & Development,ECCTV,Environment - Town Centre/CCTV,Maintenance Contract,04/06/2014,"2,517.27",1280334,A035493,"3,020.72",503.45,0125-0725,0725,Quadrant Security Group Limited
North West Leicestershire District Council,31UH,Leisure Centres,HPLC,Hood Park Leisure Centre,Operational Equipment,04/06/2014,634.50,1285053,A034993,761.40,126.90,5513-0710,0710,CSS Pools & Leisure
North West Leicestershire District Council,31UH,Street Management,ENOWM,Environment Waste Management,General Materials,04/06/2014,"8,120.80",1285072,A028619,"9,744.96","1,624.16",0370-0729,0729,LBK Packaging
North West Leicestershire District Council,31UH,Street Management,ENOP,Environment Parks,External Materials,04/06/2014,"3,412.00",1285116,A033650,"4,094.40",682.40,0390-0741,0741,Plantscape Ltd
North West Leicestershire District Council,31UH,Street Management,ENOT,Environment Transport,Repairs - Parts,04/06/2014,"1,128.54",1285138,A001647,"1,354.25",225.71,5889-0533,0533,Terberg Matec Uk
North West Leicestershire District Council,31UH,Neighbourhoods & Communities,NACCS,N & C Community Safety,CDRP - SAFER FUNDING,04/06/2014,"5,040.00",1285139,A001240,"6,048.00","1,008.00",0692-5882,5882,One Stop Promotions (Leics)
North West Leicestershire District Council,31UH,Leisure Centres,HLBC,Hermitage Bar & Catering,Catering Provisions,04/06/2014,513.88,1285171,A001264,607.05,93.17,5501-0750,0750,Palmer Harvey Mclane Ltd
North West Leicestershire District Council,31UH,Housing Repairs,HRAHRM,HRA Housing Repairs & Maintenance,Protective Clothing,04/06/2014,611.82,1285468,A009933,734.18,122.36,5103-0770,0770,Westbury Industrial Supplies
North West Leicestershire District Council,31UH,Street Management,ENOT,Environment Transport,Purchases,04/06/2014,616.80,1285482,A037391,647.64,30.84,9701-8100,8100,Emo Oil Limited
North West Leicestershire District Council,31UH,Finance,HOFI,Head of Finance,Consultants Fees,04/06/2014,794.00,1285485,A000770,952.80,158.80,1001-0827,0827,Hinckley & Bosworth Boroug
North West Leicestershire District Council,31UH,Street Management,ENOT,Environment Transport,Repairs - Parts,04/06/2014,884.22,1285494,A039355,"1,061.06",176.84,5848-0533,0533,Johnston Sweepers Ltd
North West Leicestershire District Council,31UH,Planning & Development,EPP,Environment Planning Policy,Training Expenses,04/06/2014,500.00,1285095,A001175,600.00,100.00,0925-0042,0042,National Association Of Briti
North West Leicestershire District Council,31UH,Information Technology,ICT,ICT Services,Corporate PC Purchases,04/06/2014,"3,376.00",1285481,A001298,"4,051.20",675.20,1011-0736,0736,Phoenix Software Limited
North West Leicestershire District Council,31UH,Street Management,ENOWM,Environment Waste Management,General Materials,04/06/2014,"1,098.00",1285594,A028619,"1,317.60",219.60,0370-0729,0729,LBK Packaging
North West Leicestershire District Council,31UH,Property Services,PROPCL,Property Commercial Lettings,Operational Equipment,04/06/2014,635.60,1285596,A008204,762.72,127.12,0044-0710,0710,Purchase Power
North West Leicestershire District Council,31UH,Property Services,PROPCL,Property Commercial Lettings,Equipment Operating Leases,04/06/2014,516.05,1285598,A032630,619.26,103.21,0044-0716,0716,Pitney Bowes Finance Plc
North West Leicestershire District Council,31UH,Street Management,ENOT,Environment Transport,Items To Be Leased,04/06/2014,"16,353.88",1285476,A039232,"19,569.66","3,215.78",8004-6015,6015,Polar Ford Barnsley
North West Leicestershire District Council,31UH,Street Management,ESS,Environment - Street Scene,Imp Energy Eff - Safety of Central Htg,11/06/2014,"1,965.45",1285641,A040460,"2,063.72",98.27,0913-1083,1083,Sure Maintenance Ltd
North West Leicestershire District Council,31UH,Street Management,ESS,Environment - Street Scene,Imp Energy Eff - Safety of Central Htg,11/06/2014,"2,197.35",1285642,A040460,"2,307.22",109.87,0913-1083,1083,Sure Maintenance Ltd
North West Leicestershire District Council,31UH,Housing,HRAPBS,HRA Performance & Business Support,Interim Support,11/06/2014,"2,321.41",1285646,A041207,"2,321.41",0.00,1522-0079,0079,Martin Valentine
North West Leicestershire District Council,31UH,Street Management,ENOT,Environment Transport,Non Scheduled Maintenance - Parts,11/06/2014,"1,009.51",1285647,A034141,"1,211.41",201.90,5873-0541,0541,Steel Stock ( burton - On - Trent ) Ltd
North West Leicestershire District Council,31UH,Planning & Development,EBC,Building Control,Fees - L.C.C.,11/06/2014,"3,150.00",1285692,A027423,"3,150.00",0.00,0870-0842,0842,Leicestershire County Council
North West Leicestershire District Council,31UH,Street Management,ENOT,Environment Transport,Repairs - Parts,11/06/2014,509.14,1285608,A032114,610.97,101.83,5930-0533,0533,Watling JCB Ltd
North West Leicestershire District Council,31UH,Property Services,PROPCL,Property Commercial Lettings,Postages,11/06/2014,"2,039.46",1285637,A008204,"2,039.46",0.00,0044-0850,0850,Purchase Power
North West Leicestershire District Council,31UH,Housing,HRAHM,HRA Housing Management,Furniture,11/06/2014,672.00,1285656,A000958,806.40,134.40,5030-0711,0711,ESPO
North West Leicestershire District Council,31UH,Information Technology,ICT,ICT Services,Machinery & Equipment,11/06/2014,"7,002.14",1285762,A034753,"8,402.57","1,400.43",7439-1522,1522,ANS Group Plc
North West Leicestershire District Council,31UH,Information Technology,ICT,ICT Services,Admin Equipment - Maintenance,11/06/2014,"2,250.00",1285763,A034753,"2,700.00",450.00,1011-0696,0696,ANS Group Plc
North West Leicestershire District Council,31UH,Planning & Development,EDC,Environment - Development Control,Advertising,11/06/2014,678.18,1285829,A001395,813.69,135.51,0915-0941,0941,Euro RSCG People T/A Havas People Ltd
North West Leicestershire District Council,31UH,Planning & Development,EDC,Environment - Development Control,Advertising,11/06/2014,603.66,1285830,A001395,724.28,120.62,0915-0941,0941,Euro RSCG People T/A Havas People Ltd
North West Leicestershire District Council,31UH,Planning & Development,EDC,Environment - Development Control,Advertising,11/06/2014,590.48,1285831,A001395,708.47,117.99,0915-0941,0941,Euro RSCG People T/A Havas People Ltd
North West Leicestershire District Council,31UH,Street Management,ENOP,Environment Parks,External Materials,11/06/2014,"1,000.00",1285853,A039324,"1,200.00",200.00,0390-0741,0741,Four Counties Tree Specialists Ltd
North West Leicestershire District Council,31UH,Street Management,ESS,Environment - Street Scene,Other Services,11/06/2014,"2,732.30",1285934,A041469,"3,278.76",546.46,0913-0803,0803,Buckingham Futures Ltd
North West Leicestershire District Council,31UH,Street Management,ESS,Environment - Street Scene,Agency Staff,11/06/2014,"1,518.78",1285643,A031571,"1,822.54",303.76,0913-0680,0680,HBHC Synergy Ltd
North West Leicestershire District Council,31UH,Leisure Centres,HLC,Hermitage Leisure Centre,General Repairs,11/06/2014,"2,040.00",1285697,A001069,"2,448.00",408.00,5501-0100,0100,Mclean Decorators Ltd
North West Leicestershire District Council,31UH,Leisure Centres,HLC,Hermitage Leisure Centre,Water Treatment,11/06/2014,901.36,1285703,A001591,"1,081.63",180.27,5501-0151,0151,Stowlin Ltd
North West Leicestershire District Council,31UH,Leisure Centres,HPLC,Hood Park Leisure Centre,General Repairs,11/06/2014,792.89,1285713,A001092,951.47,158.58,5513-0100,0100,John Merison BMC
North West Leicestershire District Council,31UH,Leisure Centres,HPLC,Hood Park Leisure Centre,Service Contracts,11/06/2014,"2,159.81",1285720,A009237,"2,591.77",431.96,5513-0718,0718,Phs Group Ltd
North West Leicestershire District Council,31UH,Information Technology,ICT,ICT Services,Administrative Equipment,11/06/2014,"12,784.83",1285764,A001298,"15,341.80","2,556.97",1011-0700,0700,Phoenix Software Limited
North West Leicestershire District Council,31UH,Street Management,ENOP,Environment Parks,Asset Protection,11/06/2014,"1,003.00",1285653,A038547,"1,203.60",200.60,0451-0115,0115,Cyril John Decorators Limited
North West Leicestershire District Council,31UH,Legal & Democratic,LDCE,Civic Expenses,Computing,11/06/2014,"4,000.00",1285774,A041118,"4,800.00",800.00,1018-0854,0854,Modern Mindset Ltd
North West Leicestershire District Council,31UH,Environmental Health,EEHL,Environmental Health & Licensing,Hackney Carriage - Plates & Badges,11/06/2014,990.90,1285784,A034761,"1,189.08",198.18,0310-0972,0972,NewAuto Ltd T/A Mogo UK
North West Leicestershire District Council,31UH,Street Management,ESS,Environment - Street Scene,Agency Staff,11/06/2014,975.30,1285797,A031571,"1,170.36",195.06,0913-0680,0680,HBHC Synergy Ltd
North West Leicestershire District Council,31UH,Planning & Development,ECCTV,Environment - Town Centre/CCTV,Telephones,11/06/2014,"5,004.00",1285822,A036404,"6,004.80","1,000.80",0125-0851,0851,Fluidata
North West Leicestershire District Council,31UH,Corporate Director,HR,Human Resources,Corporate Training,11/06/2014,"2,151.50",1285858,A039418,"2,581.80",430.30,1024-0044,0044,Qualityculture Ltd
North West Leicestershire District Council,31UH,Information Technology,ICT,ICT Services,Admin Equipment - Purchased & Recharged,11/06/2014,517.97,1285140,A025151,621.56,103.59,1011-0698,0698,Probrand Limited
North West Leicestershire District Council,31UH,Information Technology,ICT,ICT Services,Administrative Equipment,11/06/2014,"1,560.00",1285922,A025151,"1,872.00",312.00,1011-0700,0700,Probrand Limited
North West Leicestershire District Council,31UH,Property Services,PROPCL,Property Commercial Lettings,Telephones,18/06/2014,500.00,1286013,A015548,600.00,100.00,0044-0851,0851,GCS Communications
North West Leicestershire District Council,31UH,Street Management,ENOT,Environment Transport,Non Scheduled Maintenance - Parts,18/06/2014,"1,520.00",1286016,A035175,"1,824.00",304.00,5991-0541,0541,Malvern Tyres
North West Leicestershire District Council,31UH,Street Management,ENOT,Environment Transport,Telephone Charge / Rental,18/06/2014,566.00,1286022,A001773,679.20,113.20,0370-0860,0860,Welco
North West Leicestershire District Council,31UH,Street Management,ESS,Environment - Street Scene,Agency Staff,18/06/2014,"2,777.00",1286053,A031571,"3,332.40",555.40,0913-0080,0080,HBHC Synergy Ltd
North West Leicestershire District Council,31UH,Information Technology,ICT,ICT Services,Contract Payments (Other) Ext,18/06/2014,"17,437.50",1285761,A034753,"20,925.00","3,487.50",7457-1511,1511,ANS Group Plc
North West Leicestershire District Council,31UH,Information Technology,ICT,ICT Services,Admin Equipment - Maintenance,18/06/2014,"1,824.58",1285978,A032826,"2,189.50",364.92,1011-0696,0696,Freedom Communications (UK) Ltd
North West Leicestershire District Council,31UH,Finance,REVS,Revenues,Legal & Professional Services,18/06/2014,960.00,1285980,A036332,"1,152.00",192.00,1211-0800,0800,Datatank
North West Leicestershire District Council,31UH,Corporate Director,HR,Human Resources,Purchases,18/06/2014,"3,888.00",1285983,A035521,"3,888.00",0.00,9704-8100,8100,PES Limited
North West Leicestershire District Council,31UH,Corporate Director,HR,Human Resources,Employee Healthcare,18/06/2014,"3,060.00",1285984,A038840,"3,672.00",612.00,1024-0031,0031,Health Management Ltd
North West Leicestershire District Council,31UH,Street Management,ENOT,Environment Transport,Repairs - Parts,18/06/2014,525.90,1285990,A033469,631.08,105.18,5894-0533,0533,Anderson Commercials Limited
North West Leicestershire District Council,31UH,Street Management,ENOT,Environment Transport,Purchases,18/06/2014,"17,050.85",1286057,A040946,"20,461.02","3,410.17",9702-8100,8100,Hall Fuels (Division of Watson Petroleum
North West Leicestershire District Council,31UH,Finance,FINPLA,Financial Planning,Audit Commision Fees,18/06/2014,"20,683.00",1286059,A035156,"24,819.60","4,136.60",0843-0820,0820,KPMG LLP
North West Leicestershire District Council,31UH,Chief Exec,CHEX,Chief Executive,Consultants Fees,18/06/2014,"12,180.90",1286010,A041333,"14,617.08","2,436.18",1028-0827,0827,V4 Services Ltd
North West Leicestershire District Council,31UH,Housing Repairs,HRAHRM,HRA Housing Repairs & Maintenance,Derv,18/06/2014,"15,849.24",1286015,A000951,"15,849.24",0.00,5103-0526,0526,Leicestershire County Counc
North West Leicestershire District Council,31UH,Housing,HRAPBS,HRA Performance & Business Support,Machinery & Equipment,18/06/2014,525.00,1285956,A032102,630.00,105.00,7430-1522,1522,Cuttlefish Multimedia Ltd
North West Leicestershire District Council,31UH,Street Management,ESS,Environment - Street Scene,Agency Staff,18/06/2014,"1,005.08",1286047,A031571,"1,206.10",201.02,0913-0680,0680,HBHC Synergy Ltd
North West Leicestershire District Council,31UH,Leisure Centres,HLC,Hermitage Leisure Centre,Measham LC Lifestyle DD,18/06/2014,"2,375.01",1286064,A027454,"2,850.00",474.99,5501-1142,1142,Measham Leisure Centre
North West Leicestershire District Council,31UH,Chief Exec,CHEX,Chief Executive,Legal & Professional Services,18/06/2014,"2,400.00",1286077,A041478,"2,880.00",480.00,1203-0800,0800,Tenants Matter Ltd
North West Leicestershire District Council,31UH,Street Management,ENOP,Environment Parks,Operational Equipment - Purchases,18/06/2014,"7,011.22",1286102,A039715,"8,413.46","1,402.24",0390-0731,0731,Baginton Nurseries Ltd
North West Leicestershire District Council,31UH,Leisure Centres,HLBC,Hermitage Bar & Catering,Catering Provisions,18/06/2014,551.99,1286108,A001264,655.03,103.04,5501-0750,0750,Palmer Harvey Mclane Ltd
North West Leicestershire District Council,31UH,Housing,HRAHM,HRA Housing Management,Training Expenses,18/06/2014,625.00,1285776,A040312,750.00,125.00,1206-0042,0042,Focus4 Training
North West Leicestershire District Council,31UH,Housing,HRAHM,HRA Housing Management,Legal & Professional Services,18/06/2014,"4,510.00",1286061,A033400,"5,412.00",902.00,5030 0800,0800,Housing Partners Ltd
North West Leicestershire District Council,31UH,Housing Strategy,HS,Community - Housing Strategy,Other Services,18/06/2014,840.00,1286361,A032364,840.00,0.00,0570-0803,0803,Pinewood Lodge
North West Leicestershire District Council,31UH,Street Management,ENOGT,Environment General Technician,Expenditure against earmarked reserve,25/06/2014,"2,990.00",1286417,A039847,"3,588.00",598.00,0280-0680,0680,SG Baker Ltd
North West Leicestershire District Council,31UH,Street Management,ENOT,Environment Transport,Transport Costs - Tyres,25/06/2014,500.00,1286452,A035175,600.00,100.00,5938-0523,0523,Malvern Tyres
North West Leicestershire District Council,31UH,Street Management,ENOP,Environment Parks,General Repairs,25/06/2014,"1,058.00",1286404,A000672,"1,269.60",211.60,0478-0100,0100,Glen Farrow Uk Limited
North West Leicestershire District Council,31UH,Corporate Director,HR,Human Resources,Consultants Fees,25/06/2014,"1,892.40",1286410,A034045,"2,270.88",378.48,1500-0827,0827,BJD Associates Ltd
North West Leicestershire District Council,31UH,Chief Exec,CHEX,Chief Executive,Interim Support,25/06/2014,"1,565.70",1286428,A040743,"1,565.70",0.00,1510-0079,0079,Janice Milsom
North West Leicestershire District Council,31UH,Corporate Director,HR,Human Resources,Medical Fees,25/06/2014,527.00,1286439,A031645,527.00,0.00,0370-0049,0049,Forge Health Limited
North West Leicestershire District Council,31UH,Street Management,ENOP,Environment Parks,Training Expenses,25/06/2014,592.00,1286420,A027792,710.40,118.40,0390-0042,0042,Keith Cook Training Services
North West Leicestershire District Council,31UH,Housing Repairs,HRAHRM,HRA Housing Repairs & Maintenance,General Materials,25/06/2014,"1,710.00",1286432,A040963,"2,052.00",342.00,5301-0729,0729,Greasley Electronics Ltd
North West Leicestershire District Council,31UH,Property Services,PROPCL,Property Commercial Lettings,Contract Cleaning,25/06/2014,506.18,1286442,A003037,607.42,101.24,0044-0420,0420,Coalville Cleaning Services
North West Leicestershire District Council,31UH,Street Management,ENOT,Environment Transport,Transport Costs - Engine Oil,25/06/2014,791.30,1286497,A028311,949.56,158.26,5992-0522,0522,Freedom Lubricants Ltd
North West Leicestershire District Council,31UH,Property Services,PROPFM,Property Facilities Management,Contract Payments (Other) Ext,25/06/2014,"17,344.24",1286504,A015236,"20,813.09","3,468.85",7460-1511,1511,G F Tomlinson Building Ltd
North West Leicestershire District Council,31UH,Street Management,ENOT,Environment Transport,Purchases,25/06/2014,602.90,1286511,A037391,633.05,30.15,9701-8100,8100,Emo Oil Limited
North West Leicestershire District Council,31UH,Leisure Centres,CDCC,Castle Donington Community College,Alternative Fitness Suite,25/06/2014,522.58,1286525,A005413,627.10,104.52,0620-0968,0968,Elliott Group Limited
North West Leicestershire District Council,31UH,Leisure Centres,HPLC,Hood Park Leisure Centre,General Repairs,25/06/2014,"3,457.81",1286529,A001092,"4,149.37",691.56,5513-0100,0100,John Merison BMC
North West Leicestershire District Council,31UH,Leisure Centres,HPLC,Hood Park Leisure Centre,General Repairs,25/06/2014,600.00,1286543,A000516,720.00,120.00,5532-0100,0100,Technical Surfaces Ltd
North West Leicestershire District Council,31UH,Leisure Centres,HPLC,Hood Park Leisure Centre,Equipment For Resale,25/06/2014,949.50,1286546,A001833,"1,139.40",189.90,5513-0706,0706,Zoggs International Ltd
North West Leicestershire District Council,31UH,Property Services,PROPFM,Property Facilities Management,General Repairs,25/06/2014,"1,621.00",1286574,A037013,"1,945.20",324.20,0260-0100,0100,Interserve (formerly Rentokil Initial UK
North West Leicestershire District Council,31UH,Property Services,PROPFM,Property Facilities Management,Other Miscellaneous Expenses,25/06/2014,650.00,1286641,A033386,780.00,130.00,0052-0949,0949,RICS
North West Leicestershire District Council,31UH,Street Management,ENOP,Environment Parks,Computer Software Maintenance,25/06/2014,"7,258.00",1286817,A029902,"8,709.60","1,451.60",0477-0855,0855,Public Sector Software Ltd
North West Leicestershire District Council,31UH,Street Management,ENOWM,Environment Waste Management,General Materials,25/06/2014,"2,832.30",1286571,A001253,"3,398.76",566.46,0382-0729,0729,ESE World Limited
North West Leicestershire District Council,31UH,Street Management,ENOWM,Environment Waste Management,General Materials,25/06/2014,"1,869.90",1286572,A001253,"2,243.88",373.98,0382-0729,0729,ESE World Limited
North West Leicestershire District Council,31UH,Leisure Centres,HLC,Hermitage Leisure Centre,Publicity & Promotion,25/06/2014,"1,820.00",1286821,A037247,"1,820.00",0.00,5501-0942,0942,MWL Print Group Limited
